bitfinex-derivatives/quotes_SOLF0:USTF0_20241229
["timestamp","ask_amount","ask_price","bid_price","bid_amount"]
[1735459925296,52.65323375,195.51,195.43,8.02488658]
[1735459925496,11.02488658,195.51,195.43,10.58748658]
[1735459927499,1.5051981,195.54,195.43,2.5626]
[1735459927805,8.02488658,195.51,195.44,10.58738658]
[1735459928806,8.02488658,195.51,195.44,8.02488658]
[1735459928993,8.02488658,195.51,195.45,2.5623]
[1735459930197,11.02488658,195.53,195.46,10.58708658]
[1735459931303,3.0,195.53,195.46,10.58708658]
[1735459931693,9.53008468,195.54,195.42,3.0]
[1735459931694,1.5051981,195.54,195.48,10.58678658]
[1735459932093,1.5014,195.58,195.5,10.58648658]
[1735459932297,11.00488658,195.57,195.5,8.02488658]
[1735459932498,8.02488658,195.57,195.5,8.02488658]
[1735459932696,2.98,195.58,195.5,8.02488658]
[1735459932899,11.00488658,195.58,195.51,2.5616]
[1735459936004,11.00488658,195.58,195.52,8.02488658]
[1735459936401,2.98,195.58,195.52,8.02488658]
[1735459936602,2.98,195.58,195.52,10.58628658]
[1735459936903,11.00488658,195.6,195.52,10.58628658]
[1735459937803,11.00488658,195.6,195.54,8.02488658]
[1735459938206,8.02488658,195.56,195.48,3.0849]
[1735459938404,8.02488658,195.56,195.49,8.02488658]
[1735459941604,8.02488658,195.56,195.48,3.0849]
[1735459941807,8.02488658,195.56,195.49,8.02488658]
[1735459942004,2.98,195.55,195.49,8.02488658]
[1735459944711,8.02488658,195.6,195.53,8.02488658]
[1735459945013,2.98,195.61,195.53,8.02488658]
[1735459945209,2.98,195.61,195.48,3.0849]
[1735459945410,8.02488658,195.6,195.53,8.02488658]
[1735459948114,2.98,195.61,195.55,8.02488658]
[1735459948318,11.00488658,195.61,195.55,8.02488658]
[1735459949413,2.98,195.61,195.55,8.02488658]
[1735459949608,2.98,195.61,195.57,8.02488658]
[1735459951412,49.63332236,195.62,195.57,8.02488658]
[1735459951611,49.63332236,195.62,195.55,8.02488658]
[1735459952413,49.63332236,195.62,195.53,8.02488658]
[1735459952414,8.02488658,195.61,195.53,8.02488658]
[1735459954908,8.02488658,195.59,195.5,1.5221]
[1735459955105,8.02488658,195.57,195.5,9.54698658]
[1735459957408,2.98,195.58,195.5,9.54698658]
[1735459957616,11.00488658,195.58,195.5,9.54698658]
[1735459958116,11.00488658,195.58,195.52,8.02488658]
[1735459959422,2.98,195.58,195.52,8.02488658]
[1735459959717,11.00488658,195.58,195.52,8.02488658]
[1735459962918,2.98,195.58,195.52,8.02488658]
[1735459963417,49.63332236,195.62,195.52,8.02488658]
[1735459963615,49.63332236,195.62,195.54,8.02488658]
[1735459963814,10.96488658,195.61,195.54,8.02488658]
[1735459970024,8.02488658,195.61,195.54,8.02488658]
[1735459972220,8.02488658,195.59,195.52,8.02488658]
[1735459974524,8.02488658,195.6,195.52,8.02488658]
[1735459977429,52.57332236,195.62,195.52,10.58618658]
[1735459977630,8.02488658,195.61,195.54,8.02488658]
[1735459979932,8.02488658,195.61,195.52,8.02488658]
[1735459980835,2.94,195.6,195.52,8.02488658]
[1735459982628,8.02488658,195.57,195.5,1.5221]
[1735459982827,8.02488658,195.57,195.48,11.10978658]
[1735459983024,8.02488658,195.55,195.48,11.10978658]
[1735459983230,10.96488658,195.55,195.48,11.10978658]
[1735459985934,10.96488658,195.55,195.48,3.0849]
[1735459986236,10.96488658,195.55,195.49,8.02488658]
[1735459986833,2.94,195.59,195.53,8.02488658]
[1735459987035,10.96488658,195.59,195.53,8.02488658]
[1735459989438,49.63332236,195.62,195.53,8.02488658]
[1735459989636,2.94,195.61,195.53,8.02488658]
[1735459989835,8.02488658,195.6,195.53,8.02488658]
[1735459993933,8.02488658,195.58,195.53,8.02488658]
[1735459994135,8.02488658,195.58,195.48,3.0849]
[1735459994439,8.02488658,195.56,195.49,8.02488658]
[1735459994641,10.92488658,195.56,195.49,8.02488658]
[1735459995141,10.92488658,195.56,195.48,3.0849]
[1735459995341,10.92488658,195.56,195.48,11.10978658]
[1735459995543,10.92488658,195.56,195.5,8.02488658]
[1735459995739,8.02488658,195.56,195.5,8.02488658]
[1735459998140,8.02488658,195.56,195.49,2.5617]
[1735459998338,8.02488658,195.56,195.5,8.02488658]
[1735460000944,2.9,195.57,195.5,8.02488658]
[1735460002239,2.9,195.57,195.49,2.5617]
[1735460002446,2.9,195.57,195.48,5.6469]
[1735460002743,2.9,195.57,195.49,8.02488658]
[1735460004548,2.9,195.57,195.49,10.58668658]
[1735460005145,2.9,195.57,195.49,8.02488658]
[1735460005542,8.02488658,195.56,195.49,8.02488658]
[1735460005755,8.02488658,195.54,195.48,3.0849]
[1735460006041,8.02488658,195.52,195.48,1.5823]
[1735460006236,10.92488658,195.52,195.48,1.5823]
[1735460007541,2.9,195.52,195.48,1.5823]
[1735460016052,2.9,195.52,195.48,9.60718658]
[1735460016546,2.9,195.55,195.48,12.16918658]
[1735460020158,2.9,195.55,195.48,9.60718658]
[1735460021362,10.92488658,195.56,195.48,9.60718658]
[1735460023365,10.92488658,195.56,195.49,8.02488658]
[1735460026464,8.02488658,195.54,195.48,1.5823]
[1735460027473,2.9,195.56,195.48,1.5823]
[1735460027674,8.02488658,195.54,195.48,1.5823]
[1735460029464,2.9,195.56,195.48,1.5823]
[1735460029667,8.02488658,195.54,195.48,1.5823]
[1735460030776,10.92488658,195.56,195.49,8.02488658]
[1735460031478,1.5942,195.59,195.49,8.02488658]
[1735460031770,8.02488658,195.57,195.51,8.02488658]
[1735460035573,8.02488658,195.57,195.49,8.02488658]
[1735460038080,8.02488658,195.55,195.49,8.02488658]
[1735460038281,8.02488658,195.55,195.48,1.5823]
[1735460044485,2.88,195.58,195.48,1.5823]
[1735460044682,8.02488658,195.55,195.48,1.5823]
[1735460045183,8.02488658,195.55,195.49,8.02488658]
[1735460045688,8.02488658,195.55,195.48,1.5823]
[1735460045887,8.02488658,195.55,195.49,8.02488658]
[1735460046889,2.88,195.58,195.49,8.02488658]
[1735460047090,8.02488658,195.56,195.49,8.02488658]
[1735460051691,8.02488658,195.56,195.48,1.5823]
[1735460051892,8.02488658,195.56,195.48,9.60718658]
[1735460053086,7.11279556,195.6,195.5,8.02488658]
[1735460053292,8.02488658,195.58,195.5,8.02488658]
[1735460053492,2.88,195.57,195.5,8.02488658]
[1735460054488,2.88,195.57,195.52,8.02488658]
[1735460056188,8.02488658,195.59,195.52,8.02488658]
[1735460056394,2.88,195.58,195.52,8.02488658]
[1735460064003,8.02488658,195.59,195.52,8.02488658]
[1735460064196,10.90488658,195.59,195.52,8.02488658]
[1735460064399,8.02488658,195.59,195.52,8.02488658]
[1735460064594,10.90488658,195.59,195.52,8.02488658]
[1735460064797,10.90488658,195.59,195.52,10.58628658]
[1735460066103,8.02488658,195.59,195.52,10.58628658]
[1735460066498,2.88,195.6,195.54,10.58608658]
[1735460066698,2.88,195.6,195.54,8.02488658]
[1735460067302,8.02488658,195.61,195.54,8.02488658]
[1735460067502,10.90488658,195.61,195.54,8.02488658]
[1735460068497,8.02488658,195.61,195.54,8.02488658]
[1735460068893,2.88,195.62,195.54,8.02488658]
[1735460069094,8.02488658,195.61,195.53,2.5613]
[1735460069300,8.02488658,195.61,195.54,8.02488658]
[1735460074305,2.88,195.62,195.54,8.02488658]
[1735460074507,8.02488658,195.61,195.54,8.02488658]
[1735460075906,8.02488658,195.61,195.53,2.5613]
[1735460076105,8.02488658,195.61,195.55,8.02488658]
[1735460082905,8.02488658,195.61,195.55,9.52508658]
[1735460084513,8.02488658,195.61,195.55,1.5002]
[1735460084713,8.02488658,195.61,195.55,9.52508658]
[1735460084918,2.88,195.62,195.55,9.52508658]
[1735460085109,10.90488658,195.62,195.55,9.52508658]
[1735460085613,10.90488658,195.62,195.55,1.5002]
[1735460085816,10.90488658,195.62,195.55,9.52508658]
[1735460089411,47.84654197,195.63,195.55,9.52508658]
[1735460089615,8.02488658,195.62,195.55,12.08608658]
[1735460091117,8.02488658,195.62,195.54,8.02488658]
[1735460092513,50.72654197,195.63,195.56,8.02488658]
[1735460092708,58.75142855,195.63,195.56,8.02488658]
[1735460096726,50.72654197,195.63,195.56,8.02488658]
[1735460096922,58.75142855,195.63,195.56,8.02488658]
[1735460097123,50.72654197,195.63,195.56,8.02488658]
[1735460097322,58.75142855,195.63,195.56,8.02488658]
[1735460099430,50.72654197,195.63,195.56,8.02488658]
[1735460099931,58.75142855,195.63,195.56,8.02488658]
[1735460101024,58.75142855,195.63,195.58,8.02488658]
[1735460101437,47.84654197,195.63,195.58,8.02488658]
[1735460101726,9.95254632,195.66,195.62,8.02488658]
[1735460102129,7.07254632,195.66,195.62,8.02488658]
[1735460103030,10.90488658,195.68,195.62,8.02488658]
[1735460103421,2.88,195.68,195.62,8.02488658]
[1735460105235,8.02488658,195.63,195.57,8.02488658]
[1735460105436,10.90488658,195.63,195.57,8.02488658]
[1735460107337,10.90488658,195.63,195.56,1.5286]
[1735460107636,10.90488658,195.63,195.57,8.02488658]
[1735460109234,8.02488658,195.61,195.52,3.1063]
[1735460109435,8.02488658,195.61,195.53,8.02488658]
[1735460109639,8.02488658,195.59,195.53,8.02488658]
[1735460110439,8.02488658,195.59,195.52,3.1063]
[1735460110633,8.02488658,195.59,195.52,11.13118658]
[1735460111935,2.88,195.58,195.52,11.13118658]
[1735460114642,2.88,195.58,195.5,8.02488658]
[1735460114842,10.90488658,195.58,195.52,8.02488658]
[1735460115443,7.07254632,195.65,195.54,8.02488658]
[1735460115745,8.02488658,195.61,195.54,8.02488658]
[1735460116745,8.02488658,195.61,195.56,8.02488658]
[1735460116946,10.90488658,195.64,195.58,8.02488658]
[1735460117849,8.02488658,195.64,195.58,8.02488658]
[1735460118148,2.88,195.63,195.49,2.88]
[1735460118351,8.02488658,195.62,195.56,8.02488658]
[1735460121046,10.90488658,195.62,195.56,8.02488658]
[1735460121447,10.90488658,195.62,195.49,2.88]
[1735460121646,8.02488658,195.6,195.54,8.02488658]
[1735460122648,10.90488658,195.62,195.54,8.02488658]
[1735460124550,10.90488658,195.62,195.56,8.02488658]
[1735460127353,10.90488658,195.62,195.55,2.5611]
[1735460127554,10.90488658,195.62,195.56,8.02488658]
[1735460129056,10.90488658,195.62,195.54,2.5612]
[1735460129257,10.90488658,195.62,195.56,8.02488658]
[1735460135260,10.90488658,195.62,195.54,2.5611]
[1735460135460,10.90488658,195.62,195.55,8.02488658]
[1735460137161,10.90488658,195.62,195.54,2.5611]
[1735460137355,10.90488658,195.62,195.55,8.02488658]
[1735460137866,10.90488658,195.62,195.53,2.5613]
[1735460138056,10.90488658,195.62,195.54,8.02488658]
[1735460138461,10.90488658,195.62,195.49,2.88]
[1735460138657,8.02488658,195.56,195.46,28.3154427]
[1735460138858,8.02488658,195.54,195.46,28.3154427]
[1735460139062,8.02488658,195.54,195.48,8.02488658]
[1735460140466,2.88,195.56,195.45,4.6934]
[1735460140764,8.02488658,195.54,195.48,8.02488658]
[1735460141667,10.90488658,195.56,195.5,8.02488658]
[1735460142463,2.88,195.56,195.5,8.02488658]
[1735460143673,2.88,195.56,195.49,2.5617]
[1735460143967,2.88,195.56,195.5,8.02488658]
[1735460145571,8.02488658,195.57,195.5,8.02488658]
[1735460145868,2.88,195.56,195.5,8.02488658]
[1735460148768,2.88,195.56,195.48,2.5619]
[1735460149066,2.88,195.56,195.49,8.02488658]
[1735460149573,2.88,195.56,195.49,10.58668658]
[1735460150273,2.88,195.56,195.51,8.02488658]
[1735460150470,10.90488658,195.59,195.53,8.02488658]
[1735460150673,2.88,195.59,195.53,8.02488658]
[1735460151465,7.07254632,195.63,195.53,8.02488658]
[1735460151668,8.02488658,195.61,195.54,1.5647]
[1735460152472,2.88,195.62,195.55,8.02488658]
[1735460153066,10.90488658,195.64,195.57,8.02488658]
[1735460154275,8.02488658,195.63,195.57,8.02488658]
[1735460154471,7.11063674,195.69,195.57,8.02488658]
[1735460154774,2.88,195.68,195.59,8.02488658]
[1735460154971,8.02488658,195.67,195.59,8.02488658]
[1735460155572,8.02488658,195.67,195.61,8.02488658]
[1735460156568,10.90488658,195.68,195.61,8.02488658]
[1735460157974,10.90488658,195.68,195.61,9.49558658]
[1735460158471,46.24218295,195.71,195.63,8.02488658]
[1735460158670,2.88,195.7,195.65,8.02488658]
[1735460158866,49.12218295,195.71,195.65,8.02488658]
[1735460159376,46.24218295,195.71,195.65,8.02488658]
[1735460159677,2.88,195.73,195.67,8.02488658]
[1735460160176,2.88,195.73,195.66,8.02488658]
[1735460160777,8.02488658,195.72,195.66,8.02488658]
[1735460161078,8.02488658,195.72,195.62,5.6853]
[1735460161279,8.02488658,195.72,195.65,8.02488658]
[1735460161475,2.88,195.73,195.65,8.02488658]
[1735460161773,8.02488658,195.72,195.65,8.02488658]
[1735460162678,10.90488658,195.73,195.65,8.02488658]
[1735460164886,10.90488658,195.73,195.63,2.56]
[1735460165086,10.90488658,195.73,195.66,8.02488658]
[1735460166285,8.02488658,195.71,195.62,3.1253]
[1735460166479,8.02488658,195.69,195.62,11.15018658]
[1735460166683,2.86,195.68,195.62,11.15018658]
[1735460171794,8.02488658,195.65,195.61,1.4707]
[1735460172093,8.02488658,195.63,195.56,8.02488658]
[1735460172393,10.88488658,195.63,195.56,8.02488658]
[1735460174297,8.02488658,195.63,195.56,8.02488658]
[1735460174497,8.02488658,195.61,195.55,1.4785]
[1735460174698,8.02488658,195.57,195.51,8.02488658]
[1735460175089,2.86,195.56,195.51,8.02488658]
[1735460175295,2.86,195.56,195.5,8.02488658]
[1735460178999,8.02488658,195.55,195.49,1.5187]
[1735460179200,8.02488658,195.53,195.32,142.1584911]
[1735460179391,8.02488658,195.51,195.44,8.02488658]
[1735460179595,2.86,195.5,195.44,8.02488658]
[1735460180694,8.02488658,195.49,195.4,2.5629]
[1735460180900,8.02488658,195.49,195.43,8.02488658]
[1735460181900,8.02488658,195.47,195.38,7.2696]
[1735460182099,8.02488658,195.47,195.41,8.02488658]
[1735460184300,8.02488658,195.45,195.38,12.73128658]
[1735460184495,2.88,195.44,195.38,12.73128658]
[1735460187700,8.02488658,195.43,195.22,127.14037497]
[1735460187902,8.02488658,195.41,195.34,8.02488658]
[1735460189202,8.02488658,195.39,195.34,8.02488658]
[1735460189404,10.90488658,195.39,195.34,8.02488658]
[1735460191406,8.02488658,195.37,195.31,1.5409]
[1735460191909,8.02488658,195.35,195.28,8.02488658]
[1735460192211,43.01245661,195.44,195.3,8.02488658]
[1735460192401,8.02488658,195.36,195.3,8.02488658]
[1735460192603,10.90488658,195.36,195.24,1.5409]
[1735460192802,8.02488658,195.34,195.27,8.02488658]
[1735460195211,8.02488658,195.32,195.25,8.02488658]
[1735460195411,2.88,195.31,195.25,8.02488658]
[1735460196110,8.02488658,195.3,195.25,8.02488658]
[1735460196305,8.02488658,195.3,195.24,1.5409]
[1735460197808,8.02488658,195.3,195.21,2.5654]
[1735460198012,8.02488658,195.3,195.22,8.02488658]
[1735460198511,8.02488658,195.3,195.22,10.59028658]
[1735460201320,2.88,195.31,195.19,4.7454]
[1735460201321,2.88,195.31,195.24,8.02488658]
[1735460201522,8.02488658,195.29,195.19,4.7454]
[1735460201820,8.02488658,195.29,195.22,8.02488658]
[1735460203119,2.88,195.31,195.22,8.02488658]
[1735460203316,2.88,195.31,195.24,8.02488658]
[1735460203517,10.90488658,195.31,195.24,8.02488658]
[1735460203817,10.90488658,195.31,195.24,10.58988658]
[1735460208020,10.90488658,195.31,195.22,2.5653]
[1735460208230,10.90488658,195.31,195.25,8.02488658]
[1735460210723,2.88,195.31,195.25,8.02488658]
[1735460210931,8.02488658,195.34,195.27,8.02488658]
[1735460211229,10.90488658,195.34,195.28,1.4939]
[1735460212428,8.02488658,195.32,195.28,1.4939]
[1735460216233,8.02488658,195.3,195.24,8.02488658]
[1735460222529,8.02488658,195.3,195.2,1.5058]
[1735460222530,2.88,195.34,195.26,8.02488658]
[1735460222734,8.02488658,195.32,195.26,8.02488658]
[1735460223431,8.02488658,195.32,195.26,10.58968658]
[1735460225137,2.88,195.34,195.21,8.02488658]
[1735460225529,8.02488658,195.28,195.21,8.02488658]
[1735460225736,10.90488658,195.28,195.21,2.5655]
[1735460226038,10.90488658,195.28,195.21,10.59038658]
[1735460227640,10.90488658,195.28,195.21,8.02488658]
[1735460229537,10.90488658,195.28,195.2,4.0714]
[1735460229738,10.90488658,195.28,195.2,12.09628658]
[1735460230238,8.02488658,195.26,195.2,12.09628658]
[1735460232433,8.02488658,195.26,195.2,1.5058]
[1735460232633,8.02488658,195.24,195.2,1.5058]
[1735460233243,2.88,195.23,195.16,7.09042293]
[1735460233444,8.02488658,195.22,195.16,7.09042293]
[1735460233946,8.02488658,195.18,195.16,7.09042293]
[1735460234246,10.90488658,195.18,195.16,7.09042293]
[1735460234447,10.90488658,195.18,195.13,28.3154427]
[1735460234646,8.02488658,195.16,195.13,28.3154427]
[1735460235354,8.02488658,195.14,195.13,28.3154427]
[1735460235647,2.88,195.18,195.09,1.5371]
[1735460235847,8.02488658,195.15,195.09,1.5371]
[1735460237148,2.88,195.18,195.09,9.56198658]
[1735460237348,8.02488658,195.15,195.09,9.56198658]
[1735460237747,2.88,195.18,195.11,2.5668]
[1735460237949,8.02488658,195.16,195.11,2.5668]
[1735460238448,1.4664,195.27,195.13,8.02488658]
[1735460238647,2.88,195.26,195.15,8.02488658]
[1735460238843,2.88,195.26,195.09,1.5371]
[1735460238844,8.02488658,195.23,195.17,8.02488658]
[1735460239046,8.02488658,195.23,195.19,2.5658]
[1735460239842,8.02488658,195.23,195.18,1.6163]
[1735460240048,8.02488658,195.23,195.18,4.1822]
[1735460240448,8.02488658,195.23,195.18,1.6163]
[1735460240651,8.02488658,195.21,195.18,1.6163]
[1735460240846,2.88,195.26,195.18,1.6163]
[1735460241046,8.02488658,195.22,195.18,1.6163]
[1735460243952,2.88,195.26,195.18,1.6163]
[1735460244147,8.02488658,195.22,195.18,1.6163]
[1735460244951,8.02488658,195.24,195.18,4.1822]
[1735460245154,8.02488658,195.24,195.18,1.6163]
[1735460246454,8.02488658,195.24,195.19,2.5657]
[1735460246855,8.02488658,195.24,195.18,1.6163]
[1735460249053,8.02488658,195.24,195.18,9.64118658]
[1735460249454,8.02488658,195.24,195.19,2.5658]
[1735460251254,8.02488658,195.24,195.18,12.20708658]
[1735460251557,8.02488658,195.22,195.14,3.1267]
[1735460251759,8.02488658,195.2,195.14,3.1267]
[1735460252552,8.02488658,195.2,195.15,2.5663]
[1735460253162,8.02488658,195.2,195.15,10.59118658]
[1735460253757,8.02488658,195.2,195.14,5.6931]
[1735460253957,8.02488658,195.2,195.14,13.71798658]
[1735460254158,8.02488658,195.2,195.14,11.15158658]
[1735460255460,8.02488658,195.2,195.14,13.71798658]
[1735460256663,8.02488658,195.2,195.14,8.02488658]
[1735460258664,8.02488658,195.2,195.13,8.02488658]
[1735460262758,2.88,195.22,195.13,8.02488658]
[1735460262958,8.02488658,195.21,195.15,8.02488658]
[1735460264561,8.02488658,195.21,195.16,2.5661]
[1735460266370,8.02488658,195.21,195.15,10.59118658]
[1735460272485,2.88,195.22,195.16,2.5661]
[1735460272885,8.02488658,195.21,195.14,8.02488658]
[1735460273184,8.02488658,195.21,195.15,2.5662]
[1735460273485,7.07254632,195.3,195.09,7.5321]
[1735460273486,28.31213319,195.3,195.16,8.02488658]
[1735460273685,8.02488658,195.23,195.16,8.02488658]
[1735460275587,7.07254632,195.29,195.18,8.02488658]
[1735460275787,8.02488658,195.26,195.2,8.02488658]
[1735460277891,9.95254632,195.29,195.2,10.59048658]
[1735460278191,8.02488658,195.27,195.2,10.59048658]
[1735460278691,8.02488658,195.27,195.21,2.5655]
[1735460278882,8.02488658,195.27,195.21,4.1574]
[1735460280588,8.02488658,195.25,195.21,1.5919]
[1735460280790,8.02488658,195.25,195.18,10.59078658]
[1735460281286,8.02488658,195.25,195.17,10.59088658]
[1735460281488,8.02488658,195.23,195.17,8.02488658]
[1735460283385,8.02488658,195.23,195.17,10.59078658]
[1735460283592,8.02488658,195.24,195.17,8.02488658]
[1735460284086,8.02488658,195.24,195.18,2.5659]
[1735460285496,2.88,195.29,195.18,2.5659]
[1735460285690,8.02488658,195.25,195.19,2.5658]
[1735460286596,2.88,195.29,195.19,8.02488658]
[1735460286789,8.02488658,195.26,195.2,2.5656]
[1735460288096,8.02488658,195.26,195.19,8.02488658]
[1735460288798,8.02488658,195.26,195.19,10.59058658]
[1735460289702,8.02488658,195.24,195.17,8.02488658]
[1735460290300,8.02488658,195.24,195.17,10.59088658]
[1735460293303,2.88,195.29,195.17,10.59088658]
[1735460293499,8.02488658,195.24,195.16,1.5017]
[1735460293696,8.02488658,195.22,195.16,9.52658658]
[1735460294299,8.02488658,195.22,195.15,1.5919]
[1735460294508,8.02488658,195.22,195.15,9.61678658]
[1735460299508,2.88,195.24,195.15,12.18298658]
[1735460299707,8.02488658,195.23,195.15,9.61678658]
[1735460300212,8.02488658,195.23,195.16,2.5661]
[1735460300414,7.10713881,195.29,195.17,8.02488658]
[1735460300711,8.02488658,195.25,195.17,8.02488658]
[1735460301117,8.02488658,195.25,195.17,10.59088658]
[1735460301314,8.02488658,195.23,195.17,10.59088658]
[1735460302615,8.02488658,195.24,195.17,8.02488658]
[1735460303317,8.02488658,195.24,195.18,2.5658]
[1735460303516,2.88,195.25,195.17,8.02488658]
[1735460303717,10.90488658,195.25,195.18,8.02488658]
[1735460304218,8.02488658,195.25,195.18,10.59078658]
[1735460304414,8.02488658,195.25,195.18,8.02488658]
[1735460304917,10.90488658,195.27,195.2,8.02488658]
[1735460306418,10.90488658,195.27,195.2,10.59048658]
[1735460308018,2.88,195.31,195.24,8.02488658]
[1735460308210,8.02488658,195.3,195.24,8.02488658]
[1735460308922,8.02488658,195.3,195.24,10.58998658]
[1735460309318,8.02488658,195.3,195.25,2.565]
[1735460309819,8.02488658,195.3,195.24,8.02488658]
[1735460310321,8.02488658,195.26,195.22,1.5836]
[1735460310819,8.02488658,195.26,195.2,8.02488658]
[1735460311011,8.02488658,195.26,195.18,9.62678658]
[1735460313119,8.02488658,195.26,195.18,12.19268658]
[1735460313320,8.02488658,195.26,195.18,9.62678658]
[1735460314224,8.02488658,195.26,195.19,8.02488658]
[1735460314420,2.88,195.28,195.19,8.02488658]
[1735460314622,8.02488658,195.26,195.19,8.02488658]
[1735460314824,8.02488658,195.26,195.19,10.59068658]
[1735460317425,2.88,195.28,195.21,2.5655]
[1735460317619,10.90488658,195.28,195.22,8.02488658]
[1735460318420,2.88,195.28,195.23,2.5653]
[1735460318616,2.88,195.3,195.24,8.02488658]
[1735460318821,2.88,195.3,195.2,2.88]
[1735460319022,2.88,195.3,195.24,8.02488658]
[1735460319626,2.88,195.3,195.25,2.5649]
[1735460320518,2.88,195.33,195.26,2.5648]
[1735460320723,8.02488658,195.32,195.26,2.5648]
[1735460320918,2.88,195.33,195.26,8.02488658]
[1735460321222,10.90488658,195.35,195.28,8.02488658]
[1735460321624,8.02488658,195.35,195.28,10.58938658]
[1735460321826,7.07254632,195.39,195.28,10.58938658]
[1735460322025,7.07254632,195.39,195.3,8.02488658]
[1735460322026,8.02488658,195.37,195.3,8.02488658]
[1735460325628,10.90488658,195.37,195.3,8.02488658]
[1735460328623,2.88,195.37,195.29,2.5645]
[1735460328821,10.90488658,195.37,195.3,8.02488658]
[1735460329531,58.66,195.41,195.32,8.02488658]
[1735460329831,2.88,195.37,195.32,8.02488658]
[1735460330332,2.88,195.4,195.34,8.02488658]
[1735460330532,1.707374,195.42,195.38,8.02488658]
[1735460330735,10.90488658,195.45,195.38,8.02488658]
[1735460331526,8.59054632,195.5,195.38,8.02488658]
[1735460331725,8.02488658,195.47,195.4,8.02488658]
[1735460332430,2.88,195.49,195.4,8.02488658]
[1735460332626,8.02488658,195.48,195.4,8.02488658]
[1735460332827,2.88,195.51,195.44,8.02488658]
[1735460333028,8.02488658,195.5,195.44,8.02488658]
[1735460333529,10.90488658,195.5,195.44,8.02488658]
[1735460333936,2.88,195.5,195.44,8.02488658]
[1735460334129,8.02488658,195.5,195.44,8.02488658]
[1735460334431,10.90488658,195.5,195.44,8.02488658]
[1735460335331,2.88,195.51,195.44,8.02488658]
[1735460335532,8.02488658,195.52,195.46,8.02488658]
[1735460335732,2.88,195.53,195.46,8.02488658]
[1735460336441,8.02488658,195.54,195.46,8.02488658]
[1735460336738,2.88,195.53,195.46,8.02488658]
[1735460338328,2.88,195.53,195.46,9.63808658]
[1735460338533,2.88,195.54,195.48,8.02488658]
[1735460339235,10.90488658,195.54,195.46,9.63808658]
[1735460339439,8.02488658,195.52,195.46,9.63808658]
[1735460342434,2.88,195.54,195.46,9.63808658]
[1735460342640,8.02488658,195.53,195.46,9.63808658]
[1735460343043,2.88,195.54,195.46,9.63808658]
[1735460343241,10.90488658,195.54,195.46,9.63808658]
[1735460344246,10.90488658,195.54,195.48,8.02488658]
[1735460344542,2.86,195.53,195.48,8.02488658]
[1735460344945,9.72100762,195.56,195.48,8.02488658]
[1735460345150,2.86,195.55,195.48,8.02488658]
[1735460346351,8.02488658,195.54,195.48,8.02488658]
[1735460346648,8.02488658,195.54,195.46,9.63808658]
[1735460352556,8.02488658,195.54,195.46,1.6132]
[1735460352951,8.02488658,195.54,195.46,9.63808658]
[1735460353552,2.86,195.55,195.48,8.02488658]
[1735460353860,10.88488658,195.55,195.48,8.02488658]
[1735460354154,2.86,195.55,195.48,8.02488658]
[1735460354754,10.88488658,195.55,195.48,8.02488658]
[1735460355549,2.86,195.55,195.48,10.58678658]
[1735460355754,2.86,195.55,195.5,8.02488658]
[1735460356452,2.86,195.55,195.48,8.02488658]
[1735460356759,8.02488658,195.54,195.48,8.02488658]
[1735460358256,8.02488658,195.52,195.46,1.6132]
[1735460358456,2.86,195.55,195.46,1.6132]
[1735460358662,8.02488658,195.54,195.47,8.02488658]
[1735460359758,8.02488658,195.52,195.47,8.02488658]
[1735460360258,2.86,195.55,195.47,8.02488658]
[1735460360458,8.02488658,195.52,195.47,8.02488658]
[1735460361455,8.02488658,195.53,195.47,8.02488658]
[1735460362760,8.02488658,195.53,195.46,1.6132]
[1735460363062,8.02488658,195.53,195.46,9.63808658]
[1735460364159,10.90488658,195.53,195.46,9.63808658]
[1735460364562,2.88,195.54,195.48,8.02488658]
[1735460365366,1.69612104,195.56,195.5,8.02488658]
[1735460366464,2.88,195.57,195.5,8.02488658]
[1735460367166,2.88,195.57,195.52,8.02488658]
[1735460367366,15.0974329,195.59,195.52,8.02488658]
[1735460367670,2.88,195.58,195.52,8.02488658]
[1735460367968,39.21701977,195.59,195.52,8.02488658]
[1735460368363,28.31213319,195.59,195.54,8.02488658]
[1735460368568,31.19213319,195.59,195.54,8.02488658]
[1735460368968,28.31213319,195.59,195.54,8.02488658]
[1735460369468,17.9774329,195.61,195.54,8.02488658]
[1735460370572,7.07254632,195.61,195.56,8.02488658]
[1735460371068,2.88,195.62,195.56,8.02488658]
[1735460371773,7.07254632,195.65,195.58,8.02488658]
[1735460371961,2.88,195.64,195.58,8.02488658]
[1735460372269,2.88,195.64,195.6,8.02488658]